[Event "Fast Chess"]
[Site "ChessKid.com"]
[Date "2020.03.31"]
[Round "2"]
[White "Rosenkranz, Benjamin"]
[Black "Hessenberger, Oliver"]
[Result "0-1"]
[ECO "C55"]
[WhiteElo "1159"]
[BlackElo "1005"]
[PlyCount "56"]
[EventDate "2020.??.??"]
[TimeControl "900"]
[WhiteClock "0:11:29"]
[BlackClock "0:11:20"]

1. e4 {[%emt 0:00:00]} e5 {[%emt 0:00:01]} 2. Nf3 {[%emt 0:00:03]} Nc6 {
[%emt 0:00:02]} 3. Bc4 {[%emt 0:00:05]} Nf6 {[%emt 0:00:02]} 4. Nc3 {[%emt 0:
00:04]} Bb4 {[%emt 0:00:06]} 5. Qe2 {[%emt 0:00:06]} Bxc3 {[%emt 0:00:04]} 6.
dxc3 {[%emt 0:00:04]} d6 {[%emt 0:00:04]} 7. Be3 {[%emt 0:00:07]} Bg4 {[%emt 0:
00:03]} 8. O-O-O {[%emt 0:00:05]} Bxf3 {[%emt 0:00:01]} 9. Qxf3 {[%emt 0:00:04]
} Qe7 {[%emt 0:00:15]} 10. Qg3 {[%emt 0:00:06]} O-O-O {[%emt 0:00:08]} 11. Qxg7
{[%emt 0:00:05]} Rhg8 {[%emt 0:00:06]} 12. Qh6 {[%emt 0:00:08]} Rg6 {[%emt 0:
00:04]} 13. Qh3+ {[%emt 0:00:14]} Rd7 {[%emt 0:00:22]} 14. Bb5 {[%emt 0:00:15]}
Nxe4 {[%emt 0:00:05]} 15. Rhe1 {[%emt 0:00:14]} Nxf2 {[%emt 0:00:03]} 16. Qxh7
{[%emt 0:00:06]} Rxg2 {[%emt 0:00:27]} 17. Rd2 {[%emt 0:00:06]} a6 {[%emt 0:00:
09]} 18. Bxc6 {[%emt 0:00:07]} bxc6 {[%emt 0:00:03]} 19. Qh8+ {[%emt 0:00:06]}
Rd8 {[%emt 0:00:05]} 20. Qh3+ {[%emt 0:00:04]} Rd7 {[%emt 0:00:16]} 21. Qxg2 {
[%emt 0:00:12]} Ne4 {[%emt 0:00:06]} 22. Qxe4 {[%emt 0:00:05]} d5 {[%emt 0:00:
12]} 23. Qd4 {[%emt 0:00:08]} exd4 {[%emt 0:00:06]} 24. cxd4 {[%emt 0:00:10]}
Qh4 {[%emt 0:00:06]} 25. Ree2 {[%emt 0:00:18]} c5 {[%emt 0:00:11]} 26. dxc5 {
[%emt 0:00:06]} Qc4 {[%emt 0:00:10]} 27. h3 {[%emt 0:00:20]} Qxa2 {[%emt 0:00:
07]} 28. c6 {[%emt 0:00:12]} Qa1# {[%emt 0:00:07] VastMellowGhost won by
checkmate} 0-1

[Event "Fast Chess"]
[Site "ChessKid.com"]
[Date "2020.03.31"]
[Round "2"]
[White "Donchev, Martin"]
[Black "Halimi, Dorian"]
[Result "0-1"]
[ECO "A40"]
[WhiteElo "853"]
[BlackElo "905"]
[PlyCount "42"]
[EventDate "2020.??.??"]
[TimeControl "900"]
[WhiteClock "0:13:15"]
[BlackClock "0:11:19"]

1. d4 {[%emt 0:00:05]} e5 {[%emt 0:00:04]} 2. dxe5 {[%emt 0:00:04]} Nc6 {
[%emt 0:00:05]} 3. Nc3 {[%emt 0:00:05]} Nxe5 {[%emt 0:00:03]} 4. Bf4 {[%emt 0:
00:06]} f6 {[%emt 0:00:07]} 5. Nd5 {[%emt 0:00:08]} Bb4+ {[%emt 0:00:12]} 6. c3
{[%emt 0:00:08]} Bc5 {[%emt 0:00:04]} 7. e4 {[%emt 0:00:17]} g5 {[%emt 0:00:04]
} 8. Be3 {[%emt 0:00:06]} c6 {[%emt 0:00:08]} 9. Nb4 {[%emt 0:00:10]} Bxe3 {
[%emt 0:00:05]} 10. fxe3 {[%emt 0:00:04]} d6 {[%emt 0:00:08]} 11. Be2 {[%emt 0:
00:30]} c5 {[%emt 0:00:01]} 12. Nd5 {[%emt 0:00:09]} b6 {[%emt 0:00:05]} 13.
Bb5+ {[%emt 0:00:06]} Bd7 {[%emt 0:00:03]} 14. Bc4 {[%emt 0:00:06]} Nxc4 {
[%emt 0:00:04]} 15. b3 {[%emt 0:00:16]} Nb2 {[%emt 0:00:02]} 16. Qc2 {[%emt 0:
00:08]} Bc6 {[%emt 0:00:08]} 17. Qxb2 {[%emt 0:00:24]} Bxd5 {[%emt 0:00:02]}
18. c4 {[%emt 0:00:04]} Bxe4 {[%emt 0:00:02]} 19. Qd2 {[%emt 0:00:30]} Qe7 {
[%emt 0:00:12]} 20. O-O-O {[%emt 0:00:07]} Qe5 {[%emt 0:00:03]} 21. Ne2 {
[%emt 0:00:08]} Qa1# {[%emt 0:00:03] FullMagentaEclipse won by checkmate} 0-1

[Event "Fast Chess"]
[Site "ChessKid.com"]
[Date "2020.03.31"]
[Round "3"]
[White "Hessenberger, Oliver"]
[Black "Dai, Lana"]
[Result "0-1"]
[ECO "C50"]
[WhiteElo "963"]
[BlackElo "1160"]
[PlyCount "102"]
[EventDate "2020.??.??"]
[TimeControl "900"]
[WhiteClock "0:10:15"]
[BlackClock "0:10:12"]

1. e4 {[%emt 0:00:00]} e5 {[%emt 0:00:02]} 2. Nf3 {[%emt 0:00:01]} Nc6 {
[%emt 0:00:08]} 3. Nc3 {[%emt 0:00:01]} Bc5 {[%emt 0:00:03]} 4. Bc4 {[%emt 0:
00:01]} Nf6 {[%emt 0:00:03]} 5. d3 {[%emt 0:00:10]} h6 {[%emt 0:00:03]} 6. O-O
{[%emt 0:00:12]} d6 {[%emt 0:00:03]} 7. Be3 {[%emt 0:00:08]} Bxe3 {[%emt 0:00:
08]} 8. fxe3 {[%emt 0:00:09]} Bg4 {[%emt 0:00:03]} 9. Qe2 {[%emt 0:00:15]} Nb4
{[%emt 0:00:33]} 10. a3 {[%emt 0:00:09]} Nc6 {[%emt 0:00:10]} 11. d4 {[%emt 0:
00:08]} exd4 {[%emt 0:00:04]} 12. exd4 {[%emt 0:00:03]} Nxd4 {[%emt 0:00:01]}
13. h3 {[%emt 0:00:07]} Nxe2+ {[%emt 0:00:04]} 14. Kh1 {[%emt 0:00:05]} Nxc3 {
[%emt 0:00:03]} 15. Rfe1 {[%emt 0:00:07]} Bxf3 {[%emt 0:00:05]} 16. gxf3 {
[%emt 0:00:03]} O-O {[%emt 0:00:22]} 17. bxc3 {[%emt 0:00:15]} d5 {[%emt 0:00:
01]} 18. exd5 {[%emt 0:00:35]} Nxd5 {[%emt 0:00:05]} 19. Bxd5 {[%emt 0:00:05]}
Qxd5 {[%emt 0:00:02]} 20. Red1 {[%emt 0:00:02]} Qxf3+ {[%emt 0:00:03]} 21. Kg1
{[%emt 0:00:02]} Qg3+ {[%emt 0:00:05]} 22. Kf1 {[%emt 0:00:03]} Qxh3+ {[%emt 0:
00:02]} 23. Ke1 {[%emt 0:00:09]} Rfe8+ {[%emt 0:00:03]} 24. Kf2 {[%emt 0:00:06]
} Qe3+ {[%emt 0:00:08]} 25. Kf1 {[%emt 0:00:03]} Qe2+ {[%emt 0:00:03]} 26. Kg1
{[%emt 0:00:02]} Rad8 {[%emt 0:00:09]} 27. Rxd8 {[%emt 0:00:05]} Rxd8 {[%emt 0:
00:05]} 28. Rf1 {[%emt 0:00:04]} Qe3+ {[%emt 0:00:05]} 29. Rf2 {[%emt 0:00:03]}
Rd1+ {[%emt 0:00:03]} 30. Kg2 {[%emt 0:00:03]} Qe4+ {[%emt 0:00:05]} 31. Rf3 {
[%emt 0:00:05]} Rd2+ {[%emt 0:00:03]} 32. Kg3 {[%emt 0:00:04]} Qg6+ {[%emt 0:
00:07]} 33. Kf4 {[%emt 0:00:05]} Qf6+ {[%emt 0:00:08]} 34. Ke3 {[%emt 0:00:05]}
Qd6 {[%emt 0:00:07]} 35. Ke4 {[%emt 0:00:08]} Rxc2 {[%emt 0:00:10]} 36. Ke3 {
[%emt 0:00:12]} Qd2+ {[%emt 0:00:04]} 37. Ke4 {[%emt 0:00:04]} Qe2+ {[%emt 0:
00:03]} 38. Re3 {[%emt 0:00:03]} Qc4+ {[%emt 0:00:11]} 39. Kf3 {[%emt 0:00:03]}
Qf1+ {[%emt 0:00:09]} 40. Ke4 {[%emt 0:00:05]} Qg2+ {[%emt 0:00:02]} 41. Rf3 {
[%emt 0:00:06]} Re2+ {[%emt 0:00:07]} 42. Kf4 {[%emt 0:00:05]} Rf2 {[%emt 0:00:
12]} 43. c4 {[%emt 0:00:05]} Qxf3+ {[%emt 0:00:03]} 44. Ke5 {[%emt 0:00:03]}
Qe3+ {[%emt 0:00:04]} 45. Kd5 {[%emt 0:00:02]} c6+ {[%emt 0:00:02]} 46. Kd6 {
[%emt 0:00:04]} Rd2+ {[%emt 0:00:03]} 47. Kc7 {[%emt 0:00:03]} b5 {[%emt 0:00:
04]} 48. Kxc6 {[%emt 0:00:03]} bxc4 {[%emt 0:00:01]} 49. a4 {[%emt 0:00:03]} c3
{[%emt 0:00:05]} 50. Kb7 {[%emt 0:00:02]} Qb6+ {[%emt 0:00:02]} 51. Ka8 {
[%emt 0:00:02]} Rd8# {[%emt 0:00:04] TopBrownCave won by checkmate} 0-1

[Event "Fast Chess"]
[Site "ChessKid.com"]
[Date "2020.03.31"]
[Round "3"]
[White "Rosenkranz, Benjamin"]
[Black "Li, Tobias"]
[Result "1-0"]
[ECO "C47"]
[WhiteElo "1170"]
[BlackElo "1241"]
[PlyCount "43"]
[EventDate "2020.??.??"]
[TimeControl "900"]
[WhiteClock "0:12:17"]
[BlackClock "0:12:01"]

1. e4 {[%emt 0:00:00]} e5 {[%emt 0:00:03]} 2. Nf3 {[%emt 0:00:02]} Nc6 {
[%emt 0:00:02]} 3. Nc3 {[%emt 0:00:11]} Bc5 {[%emt 0:00:05]} 4. d3 {[%emt 0:00:
10]} Nf6 {[%emt 0:00:02]} 5. Bg5 {[%emt 0:00:11]} Be7 {[%emt 0:00:06]} 6. Qd2 {
[%emt 0:00:05]} d6 {[%emt 0:00:03]} 7. O-O-O {[%emt 0:00:04]} O-O {[%emt 0:00:
02]} 8. Nh4 {[%emt 0:00:12]} h6 {[%emt 0:00:06]} 9. Be3 {[%emt 0:00:08]} Bg4 {
[%emt 0:00:07]} 10. f3 {[%emt 0:00:06]} Be6 {[%emt 0:00:02]} 11. Qf2 {[%emt 0:
00:07]} Nxe4 {[%emt 0:00:13]} 12. fxe4 {[%emt 0:00:04]} Bxh4 {[%emt 0:00:03]}
13. Qf3 {[%emt 0:00:06]} Bf6 {[%emt 0:00:05]} 14. Qg3 {[%emt 0:00:15]} Bg5 {
[%emt 0:00:13]} 15. Bxg5 {[%emt 0:00:07]} Qxg5+ {[%emt 0:00:04]} 16. Qxg5 {
[%emt 0:00:03]} h5 {[%emt 0:00:02]} 17. Qxh5 {[%emt 0:00:10]} g6 {[%emt 0:00:
38]} 18. Qh6 {[%emt 0:00:05]} Nd4 {[%emt 0:00:11]} 19. Ne2 {[%emt 0:00:19]} Nc6
{[%emt 0:00:06]} 20. Ng3 {[%emt 0:00:07]} Bg4 {[%emt 0:00:08]} 21. Rd2 {
[%emt 0:00:10]} Ne7 {[%emt 0:00:23]} 22. Rf2 {[%emt 0:00:17] FineBeamingStage
won by resignation} 1-0

[Event "Fast Chess"]
[Site "ChessKid.com"]
[Date "2020.03.31"]
[Round "3"]
[White "Sasse, Gabriel"]
[Black "Halimi, Dorian"]
[Result "1-0"]
[ECO "C55"]
[WhiteElo "1213"]
[BlackElo "893"]
[PlyCount "27"]
[EventDate "2020.??.??"]
[TimeControl "900"]
[WhiteClock "0:13:17"]
[BlackClock "0:14:20"]

1. e4 {[%emt 0:00:00]} e5 {[%emt 0:00:04]} 2. Nf3 {[%emt 0:00:01]} Nc6 {
[%emt 0:00:03]} 3. Bc4 {[%emt 0:00:01]} Bc5 {[%emt 0:00:04]} 4. Nc3 {[%emt 0:
00:00]} Nf6 {[%emt 0:00:06]} 5. h3 {[%emt 0:00:01]} Qe7 {[%emt 0:00:03]} 6. O-O
{[%emt 0:00:01]} O-O {[%emt 0:00:02]} 7. Ne1 {[%emt 0:00:15]} Nxe4 {[%emt 0:00:
12]} 8. Nxe4 {[%emt 0:00:04]} b6 {[%emt 0:00:13]} 9. Bd3 {[%emt 0:00:02]} Bb7 {
[%emt 0:00:08]} 10. Nxc5 {[%emt 0:00:03]} Rfb8 {[%emt 0:00:13]} 11. Qg4 {
[%emt 0:00:02]} bxc5 {[%emt 0:00:08]} 12. Qh5 {[%emt 0:00:03]} a6 {[%emt 0:00:
14]} 13. Qxh7+ {[%emt 0:00:03]} Kf8 {[%emt 0:00:14]} 14. Qh8# {[%emt 0:00:04]
LimeFarActor won by checkmate} 1-0

[Event "Fast Chess"]
[Site "ChessKid.com"]
[Date "2020.03.31"]
[Round "3"]
[White "Kulcsar, Lisa"]
[Black "Donchev, Martin"]
[Result "0-1"]
[ECO "B00"]
[WhiteElo "828"]
[BlackElo "933"]
[PlyCount "50"]
[EventDate "2020.??.??"]
[TimeControl "900"]
[WhiteClock "0:10:06"]
[BlackClock "0:09:22"]

1. e4 {[%emt 0:00:00]} e5 {[%emt 0:01:09]} 2. Bd3 {[%emt 0:00:07]} Nf6 {
[%emt 0:00:05]} 3. Nf3 {[%emt 0:00:04]} Nc6 {[%emt 0:00:10]} 4. O-O {[%emt 0:
00:05]} Bc5 {[%emt 0:00:20]} 5. a4 {[%emt 0:00:11]} O-O {[%emt 0:00:05]} 6. c4
{[%emt 0:00:16]} d6 {[%emt 0:00:06]} 7. Qb3 {[%emt 0:00:05]} Bg4 {[%emt 0:00:
21]} 8. Be2 {[%emt 0:00:12]} Nh5 {[%emt 0:00:18]} 9. Ra2 {[%emt 0:00:20]} g5 {
[%emt 0:00:07]} 10. Qxb7 {[%emt 0:00:20]} Rc8 {[%emt 0:00:07]} 11. Qxc6 {
[%emt 0:00:15]} Rb8 {[%emt 0:00:12]} 12. Qd5 {[%emt 0:00:21]} Bxf3 {[%emt 0:00:
10]} 13. Bxf3 {[%emt 0:00:07]} Nf4 {[%emt 0:00:05]} 14. d3 {[%emt 0:00:20]} h6
{[%emt 0:00:08]} 15. b3 {[%emt 0:00:17]} h5 {[%emt 0:00:07]} 16. Bxh5 {[%emt 0:
00:13]} g4 {[%emt 0:00:08]} 17. Bxg4 {[%emt 0:00:14]} Nxd5 {[%emt 0:00:06]} 18.
exd5 {[%emt 0:00:05]} a6 {[%emt 0:00:09]} 19. Re1 {[%emt 0:00:15]} Re8 {
[%emt 0:00:15]} 20. Ba3 {[%emt 0:00:08]} a5 {[%emt 0:00:09]} 21. d4 {[%emt 0:
00:18]} exd4 {[%emt 0:00:10]} 22. Nd2 {[%emt 0:00:19]} d3 {[%emt 0:00:05]} 23.
Bb4 {[%emt 0:00:42]} Bxb4 {[%emt 0:00:06]} 24. Rd1 {[%emt 0:00:16]} Bxd2 {
[%emt 0:00:08]} 25. Rdxd2 {[%emt 0:00:08]} Re1# {[%emt 0:00:07] ShyDarkIsland
won by checkmate} 0-1

[Event "Fast Chess"]
[Site "ChessKid.com"]
[Date "2020.04.02"]
[Round "1"]
[White "Dai, Lana"]
[Black "Sasse, Gabriel"]
[Result "1-0"]
[ECO "C50"]
[WhiteElo "1182"]
[BlackElo "1188"]
[PlyCount "143"]
[EventDate "2020.??.??"]
[TimeControl "600"]
[WhiteClock "0:06:06"]
[BlackClock "0:01:53"]

1. e4 {[%emt 0:00:01]} e5 {[%emt 0:00:01]} 2. Nc3 {[%emt 0:00:04]} Nc6 {
[%emt 0:00:00]} 3. Bc4 {[%emt 0:00:03]} Bc5 {[%emt 0:00:01]} 4. Nf3 {[%emt 0:
00:03]} Nf6 {[%emt 0:00:00]} 5. d3 {[%emt 0:00:05]} h6 {[%emt 0:00:01]} 6. O-O
{[%emt 0:00:09]} O-O {[%emt 0:00:00]} 7. Nh4 {[%emt 0:00:17]} d6 {[%emt 0:00:
01]} 8. h3 {[%emt 0:00:17]} Nh5 {[%emt 0:00:08]} 9. Qxh5 {[%emt 0:00:16]} Na5 {
[%emt 0:00:12]} 10. Bd5 {[%emt 0:00:32]} c6 {[%emt 0:00:03]} 11. Bb3 {[%emt 0:
00:23]} Nxb3 {[%emt 0:00:02]} 12. cxb3 {[%emt 0:00:02]} Bd4 {[%emt 0:00:04]}
13. Bd2 {[%emt 0:00:26]} Bd7 {[%emt 0:00:06]} 14. Nf5 {[%emt 0:00:10]} Be8 {
[%emt 0:00:05]} 15. Qg4 {[%emt 0:00:08]} Qf6 {[%emt 0:00:12]} 16. Bxh6 {
[%emt 0:00:13]} Bxf2+ {[%emt 0:00:11]} 17. Rxf2 {[%emt 0:00:07]} Bd7 {[%emt 0:
00:06]} 18. Ne7+ {[%emt 0:00:15]} Kh8 {[%emt 0:00:09]} 19. Bxg7+ {[%emt 0:00:
10]} Qxg7 {[%emt 0:00:06]} 20. Qh5+ {[%emt 0:00:11]} Qh7 {[%emt 0:00:10]} 21.
Qxh7+ {[%emt 0:00:07]} Kxh7 {[%emt 0:00:02]} 22. Raf1 {[%emt 0:00:16]} Be6 {
[%emt 0:00:04]} 23. Nf5 {[%emt 0:00:21]} Bxf5 {[%emt 0:00:03]} 24. Rxf5 {
[%emt 0:00:02]} Kg7 {[%emt 0:00:05]} 25. Rg5+ {[%emt 0:00:07]} Kh8 {[%emt 0:00:
02]} 26. Rf6 {[%emt 0:00:10]} Kh7 {[%emt 0:00:04]} 27. Rh5+ {[%emt 0:00:05]}
Kg7 {[%emt 0:00:03]} 28. Rfh6 {[%emt 0:00:06]} Rh8 {[%emt 0:00:06]} 29. Rxh8 {
[%emt 0:00:08]} Rxh8 {[%emt 0:00:02]} 30. Rxh8 {[%emt 0:00:01]} Kxh8 {[%emt 0:
00:01]} 31. g4 {[%emt 0:00:02]} Kh7 {[%emt 0:00:03]} 32. Kg2 {[%emt 0:00:01]}
Kh6 {[%emt 0:00:02]} 33. Kg3 {[%emt 0:00:01]} f6 {[%emt 0:00:01]} 34. h4 {
[%emt 0:00:02]} b6 {[%emt 0:00:04]} 35. b4 {[%emt 0:00:06]} a5 {[%emt 0:00:03]}
36. bxa5 {[%emt 0:00:02]} bxa5 {[%emt 0:00:01]} 37. Na4 {[%emt 0:00:02]} d5 {
[%emt 0:00:04]} 38. exd5 {[%emt 0:00:02]} cxd5 {[%emt 0:00:01]} 39. Nc5 {
[%emt 0:00:02]} Kg6 {[%emt 0:00:06]} 40. a4 {[%emt 0:00:08]} f5 {[%emt 0:00:07]
} 41. gxf5+ {[%emt 0:00:09]} Kxf5 {[%emt 0:00:01]} 42. h5 {[%emt 0:00:04]} Kg5
{[%emt 0:00:01]} 43. h6 {[%emt 0:00:15]} Kxh6 {[%emt 0:00:02]} 44. Kg4 {
[%emt 0:00:04]} Kg6 {[%emt 0:00:02]} 45. Kf3 {[%emt 0:00:09]} Kf5 {[%emt 0:00:
01]} 46. Ke3 {[%emt 0:00:02]} e4 {[%emt 0:00:02]} 47. dxe4+ {[%emt 0:00:05]}
dxe4 {[%emt 0:00:01]} 48. b3 {[%emt 0:00:04]} Ke5 {[%emt 0:00:03]} 49. Nd7+ {
[%emt 0:00:04]} Kd5 {[%emt 0:00:02]} 50. Nb6+ {[%emt 0:00:05]} Kc5 {[%emt 0:00:
03]} 51. Nd7+ {[%emt 0:00:02]} Kb4 {[%emt 0:00:02]} 52. Nb6 {[%emt 0:00:10]}
Kxb3 {[%emt 0:00:02]} 53. Kxe4 {[%emt 0:00:01]} Kb4 {[%emt 0:00:01]} 54. Kd4 {
[%emt 0:00:07]} Ka3 {[%emt 0:00:04]} 55. Kc4 {[%emt 0:00:04]} Ka2 {[%emt 0:00:
02]} 56. Kb5 {[%emt 0:00:02]} Ka3 {[%emt 0:00:01]} 57. Nc4+ {[%emt 0:00:03]}
Kb3 {[%emt 0:00:03]} 58. Nxa5+ {[%emt 0:00:09]} Ka3 {[%emt 0:00:03]} 59. Nc6 {
[%emt 0:00:02]} Kb3 {[%emt 0:00:05]} 60. a5 {[%emt 0:00:01]} Kc3 {[%emt 0:00:
02]} 61. a6 {[%emt 0:00:01]} Kd3 {[%emt 0:00:03]} 62. a7 {[%emt 0:00:01]} Ke4 {
[%emt 0:00:02]} 63. a8=Q {[%emt 0:00:05]} Kf5 {[%emt 0:00:04]} 64. Qf8+ {
[%emt 0:00:07]} Ke4 {[%emt 0:00:02]} 65. Qf6 {[%emt 0:00:03]} Ke3 {[%emt 0:00:
06]} 66. Qf5 {[%emt 0:00:02]} Kd2 {[%emt 0:00:04]} 67. Qe4 {[%emt 0:00:03]} Kc3
{[%emt 0:00:02]} 68. Ka4 {[%emt 0:00:08]} Kb2 {[%emt 0:00:03]} 69. Qf3 {
[%emt 0:00:02]} Kc2 {[%emt 0:00:02]} 70. Nd4+ {[%emt 0:00:04]} Kb2 {[%emt 0:00:
01]} 71. Qb3+ {[%emt 0:00:04]} Kc1 {[%emt 0:00:02]} 72. Qc2# {[%emt 0:00:04]
TopBrownCave won by checkmate} 1-0

[Event "Fast Chess"]
[Site "ChessKid.com"]
[Date "2020.04.02"]
[Round "1"]
[White "Li, Tobias"]
[Black "Li, Patrick"]
[Result "1-0"]
[ECO "A40"]
[WhiteElo "1205"]
[BlackElo "957"]
[PlyCount "57"]
[EventDate "2020.??.??"]
[TimeControl "600"]
[WhiteClock "0:07:00"]
[BlackClock "0:08:06"]

1. d4 {[%emt 0:00:02]} e6 {[%emt 0:00:00]} 2. Nc3 {[%emt 0:00:04]} d6 {[%emt 0:
00:00]} 3. Nf3 {[%emt 0:00:01]} Nc6 {[%emt 0:00:04]} 4. e3 {[%emt 0:00:02]} Nf6
{[%emt 0:00:17]} 5. Be2 {[%emt 0:00:06]} e5 {[%emt 0:00:02]} 6. O-O {[%emt 0:
00:07]} exd4 {[%emt 0:00:05]} 7. exd4 {[%emt 0:00:01]} Nb4 {[%emt 0:00:04]} 8.
Re1 {[%emt 0:00:03]} Bf5 {[%emt 0:00:01]} 9. Bd3+ {[%emt 0:00:02]} Be7 {
[%emt 0:00:06]} 10. Bxf5 {[%emt 0:00:02]} Nbd5 {[%emt 0:00:12]} 11. Nxd5 {
[%emt 0:00:05]} Nxd5 {[%emt 0:00:00]} 12. Be4 {[%emt 0:00:02]} Nb4 {[%emt 0:00:
07]} 13. Bxb7 {[%emt 0:00:02]} Rb8 {[%emt 0:00:05]} 14. Be4 {[%emt 0:00:04]}
Bf6 {[%emt 0:00:11]} 15. Bd2 {[%emt 0:00:03]} Na6 {[%emt 0:00:11]} 16. h3 {
[%emt 0:00:05]} Rxb2 {[%emt 0:00:02]} 17. Bc1 {[%emt 0:00:05]} Rb4 {[%emt 0:00:
04]} 18. Bd2 {[%emt 0:00:03]} Rb2 {[%emt 0:00:03]} 19. Bc3 {[%emt 0:00:02]} Rb6
{[%emt 0:00:10]} 20. Qd2 {[%emt 0:00:17]} Rb5 {[%emt 0:00:17]} 21. Bc6+ {
[%emt 0:00:03]} Kf8 {[%emt 0:00:16]} 22. Bxb5 {[%emt 0:00:04]} Qb8 {[%emt 0:00:
08]} 23. Bxa6 {[%emt 0:00:04]} Qb6 {[%emt 0:00:03]} 24. Qd3 {[%emt 0:00:07]} c5
{[%emt 0:00:11]} 25. dxc5 {[%emt 0:00:07]} dxc5 {[%emt 0:00:00]} 26. Qd8+ {
[%emt 0:00:02]} Qxd8 {[%emt 0:00:06]} 27. Bb5 {[%emt 0:00:01]} Qa5 {[%emt 0:00:
10]} 28. Bxa5 {[%emt 0:00:06]} Bxa1 {[%emt 0:00:05]} 29. Re8# {[%emt 0:00:03]
OnlyHungryKiwi won by checkmate} 1-0

[Event "Fast Chess"]
[Site "ChessKid.com"]
[Date "2020.04.02"]
[Round "2"]
[White "Dai, Lana"]
[Black "Li, Tobias"]
[Result "1-0"]
[ECO "C50"]
[WhiteElo "1196"]
[BlackElo "1185"]
[PlyCount "99"]
[EventDate "2020.??.??"]
[TimeControl "600"]
[WhiteClock "0:04:37"]
[BlackClock "0:01:46"]

1. e4 {[%emt 0:00:00]} e5 {[%emt 0:00:02]} 2. Nc3 {[%emt 0:00:07]} Nf6 {
[%emt 0:00:05]} 3. Nf3 {[%emt 0:00:03]} Nc6 {[%emt 0:00:02]} 4. Bc4 {[%emt 0:
00:11]} Bc5 {[%emt 0:00:03]} 5. d3 {[%emt 0:00:06]} Ng4 {[%emt 0:00:04]} 6. Be3
{[%emt 0:00:09]} Bxe3 {[%emt 0:00:04]} 7. fxe3 {[%emt 0:00:06]} Nxe3 {[%emt 0:
00:05]} 8. Qd2 {[%emt 0:00:07]} Nxg2+ {[%emt 0:00:14]} 9. Qxg2 {[%emt 0:00:06]}
O-O {[%emt 0:00:03]} 10. O-O-O {[%emt 0:00:31]} d6 {[%emt 0:00:05]} 11. Rhg1 {
[%emt 0:00:05]} g6 {[%emt 0:00:04]} 12. Ng5 {[%emt 0:00:09]} Qf6 {[%emt 0:00:
18]} 13. Rgf1 {[%emt 0:00:20]} Qg7 {[%emt 0:00:07]} 14. h4 {[%emt 0:00:31]} Na5
{[%emt 0:00:26]} 15. Bd5 {[%emt 0:00:27]} Nc6 {[%emt 0:00:14]} 16. Nf3 {
[%emt 0:00:20]} Bd7 {[%emt 0:00:20]} 17. h5 {[%emt 0:00:16]} gxh5 {[%emt 0:00:
08]} 18. Qxg7+ {[%emt 0:00:05]} Kxg7 {[%emt 0:00:01]} 19. Rg1+ {[%emt 0:00:02]}
Kh8 {[%emt 0:00:01]} 20. Ng5 {[%emt 0:00:05]} f6 {[%emt 0:00:08]} 21. Nf7+ {
[%emt 0:00:11]} Rxf7 {[%emt 0:00:07]} 22. Bxf7 {[%emt 0:00:02]} Rf8 {[%emt 0:
00:10]} 23. Bd5 {[%emt 0:00:10]} Nd4 {[%emt 0:00:18]} 24. Rg2 {[%emt 0:00:12]}
Nc6 {[%emt 0:00:15]} 25. Rdg1 {[%emt 0:00:06]} Ne7 {[%emt 0:00:09]} 26. a4 {
[%emt 0:00:28]} Nxd5 {[%emt 0:00:04]} 27. Nxd5 {[%emt 0:00:07]} Bxa4 {[%emt 0:
00:06]} 28. Ne7 {[%emt 0:00:11]} h6 {[%emt 0:00:23]} 29. Rg8+ {[%emt 0:00:11]}
Rxg8 {[%emt 0:00:02]} 30. Rxg8+ {[%emt 0:00:04]} Kh7 {[%emt 0:00:00]} 31. Rg6 {
[%emt 0:00:09]} Be8 {[%emt 0:00:08]} 32. Rg8 {[%emt 0:00:05]} Bf7 {[%emt 0:00:
02]} 33. Rf8 {[%emt 0:00:09]} Be6 {[%emt 0:00:08]} 34. c4 {[%emt 0:00:16]} Kg7
{[%emt 0:00:09]} 35. Ra8 {[%emt 0:00:14]} Kf7 {[%emt 0:00:07]} 36. Ng8 {
[%emt 0:00:08]} Kg7 {[%emt 0:00:04]} 37. Ne7 {[%emt 0:00:14]} Kf7 {[%emt 0:00:
03]} 38. Nf5 {[%emt 0:00:04]} Kg6 {[%emt 0:00:03]} 39. Rg8+ {[%emt 0:00:14]}
Kf7 {[%emt 0:00:03]} 40. Rg7+ {[%emt 0:00:03]} Kf8 {[%emt 0:00:03]} 41. Rxc7 {
[%emt 0:00:09]} Ke8 {[%emt 0:00:03]} 42. Ng7+ {[%emt 0:00:05]} Kd8 {[%emt 0:00:
08]} 43. Nxe6+ {[%emt 0:00:05]} Ke8 {[%emt 0:00:00]} 44. Rxb7 {[%emt 0:00:14]}
d5 {[%emt 0:00:05]} 45. Ng7+ {[%emt 0:00:03]} Kd8 {[%emt 0:00:04]} 46. exd5 {
[%emt 0:00:02]} a6 {[%emt 0:00:02]} 47. d6 {[%emt 0:00:03]} h4 {[%emt 0:00:01]}
48. c5 {[%emt 0:00:05]} h3 {[%emt 0:00:01]} 49. c6 {[%emt 0:00:15]} h2 {
[%emt 0:00:04]} 50. Rb8# {[%emt 0:00:09] TopBrownCave won by checkmate} 1-0